[Event "*** Titled Tuesday Blitz"]
[Site "Chess.com"]
[Date "2020.04.28"]
[Round "1"]
[White "WelshTiger"]
[Black "Berardino"]
[Result "0-1"]
[WhiteElo "2337"]
[BlackElo "2667"]
[TimeControl "180+1"]
[EndTime "10:08:04 PDT"]
[Termination "Berardino won by resignation"]

1. e4 {[%clk 0:03:00.9]} 1... c5 {[%clk 0:03:00.2]} 2. Nf3 {[%clk 0:03:00.4]}
2... b6 {[%clk 0:03:00.6]} 3. d4 {[%clk 0:02:53.1]} 3... cxd4 {[%clk 0:03:01.5]}
4. Nxd4 {[%clk 0:02:53.1]} 4... Bb7 {[%clk 0:03:02]} 5. Bd3 {[%clk 0:02:49.2]}
5... Nc6 {[%clk 0:03:01]} 6. Nxc6 {[%clk 0:02:48.1]} 6... Bxc6 {[%clk
0:03:01.9]} 7. O-O {[%clk 0:02:47.9]} 7... e6 {[%clk 0:02:57.8]} 8. c4 {[%clk
0:02:47.8]} 8... Bc5 {[%clk 0:02:54.1]} 9. Nc3 {[%clk 0:02:35.1]} 9... Qh4
{[%clk 0:02:52.5]} 10. Be3 {[%clk 0:02:25.2]} 10... Nf6 {[%clk 0:02:51.4]} 11.
Bxc5 {[%clk 0:02:15.9]} 11... bxc5 {[%clk 0:02:52.3]} 12. f3 {[%clk 0:02:14.5]}
12... O-O {[%clk 0:02:40.8]} 13. Qe1 {[%clk 0:02:10.3]} 13... Qxe1 {[%clk
0:02:35.8]} 14. Rfxe1 {[%clk 0:02:09.1]} 14... Rfb8 {[%clk 0:02:34.6]} 15. b3
{[%clk 0:02:08.4]} 15... a5 {[%clk 0:02:34.3]} 16. e5 {[%clk 0:02:05.1]} 16...
Ne8 {[%clk 0:02:33.6]} 17. Nb5 {[%clk 0:02:01.9]} 17... Bxb5 {[%clk 0:02:32.9]}
18. cxb5 {[%clk 0:02:01.9]} 18... Kf8 {[%clk 0:02:32.9]} 19. a4 {[%clk
0:02:01.7]} 19... Ke7 {[%clk 0:02:32.8]} 20. Be4 {[%clk 0:02:02.1]} 20... Ra7
{[%clk 0:02:32.5]} 21. Rac1 {[%clk 0:02:01.8]} 21... Rc7 {[%clk 0:02:32.1]} 22.
Re2 {[%clk 0:01:57.4]} 22... d5 {[%clk 0:02:32.2]} 23. exd6+ {[%clk 0:01:57.4]}
23... Nxd6 {[%clk 0:02:32.5]} 24. Bc6 {[%clk 0:01:57.5]} 24... Nc8 {[%clk
0:02:27.7]} 25. Rxc5 {[%clk 0:01:56.1]} 25... Nb6 {[%clk 0:02:28]} 26. Rec2
{[%clk 0:01:49.5]} 26... Rbc8 {[%clk 0:02:22.8]} 27. Kf2 {[%clk 0:01:47.4]}
27... g6 {[%clk 0:02:21.9]} 28. Kg3 {[%clk 0:01:43.7]} 28... h5 {[%clk
0:02:21.3]} 29. Kf4 {[%clk 0:01:43.1]} 29... Rd8 {[%clk 0:02:21.2]} 30. Ke3
{[%clk 0:01:42.3]} 30... Rd1 {[%clk 0:02:19.5]} 31. Be4 {[%clk 0:01:40.8]} 31...
Rcd7 {[%clk 0:02:06.2]} 32. Rc7 {[%clk 0:01:37]} 32... Re1+ {[%clk 0:02:02]} 33.
Kf2 {[%clk 0:01:35.1]} 33... Rb1 {[%clk 0:01:54.9]} 34. Rxd7+ {[%clk 0:01:33.3]}
34... Nxd7 {[%clk 0:01:55.8]} 35. Rc3 {[%clk 0:01:10.4]} 35... Rb2+ {[%clk
0:01:55]} 36. Ke3 {[%clk 0:01:09.1]} 36... Kd6 {[%clk 0:01:48.4]} 37. f4 {[%clk
0:01:07.1]} 37... Nc5 {[%clk 0:01:45.1]} 38. Bc2 {[%clk 0:01:02.6]} 38... Ra2
{[%clk 0:01:38.8]} 39. Kd4 {[%clk 0:01:00.4]} 39... Nd7 {[%clk 0:01:35.6]} 40.
Rc6+ {[%clk 0:00:58.5]} 40... Ke7 {[%clk 0:01:35.6]} 41. b6 {[%clk 0:00:58.6]}
41... Nxb6 {[%clk 0:01:33.8]} 42. Rxb6 {[%clk 0:00:47]} 42... Rxc2 {[%clk
0:01:33.7]} 43. Rb5 {[%clk 0:00:47.2]} 43... Rxg2 {[%clk 0:01:32.4]} 44. Rxa5
{[%clk 0:00:47.4]} 44... Rxh2 {[%clk 0:01:32.8]} 45. Rc5 {[%clk 0:00:44.3]}
45... Ra2 {[%clk 0:01:31.8]} 46. a5 {[%clk 0:00:43.4]} 46... h4 {[%clk
0:01:32.1]} 47. b4 {[%clk 0:00:43.4]} 47... h3 {[%clk 0:01:32.1]} 48. Rc3 {[%clk
0:00:43.8]} 48... h2 {[%clk 0:01:31.9]} 49. Rh3 {[%clk 0:00:44]} 49... Kf6
{[%clk 0:01:31.8]} 50. Kc5 {[%clk 0:00:42.7]} 50... Kf5 {[%clk 0:01:31.4]} 51.
Kb6 {[%clk 0:00:40.8]} 51... Kxf4 {[%clk 0:01:30.5]} 52. a6 {[%clk 0:00:40.1]}
52... g5 {[%clk 0:01:10.6]} 53. a7 {[%clk 0:00:38.4]} 53... g4 {[%clk
0:00:58.5]} 54. Rxh2 {[%clk 0:00:38.5]} 54... Rxh2 {[%clk 0:00:57.9]} 55. a8=Q
{[%clk 0:00:38.3]} 55... f5 {[%clk 0:00:56.9]} 56. Qb8+ {[%clk 0:00:36.2]} 56...
e5 {[%clk 0:00:57]} 57. Kc5 {[%clk 0:00:34.3]} 57... g3 {[%clk 0:00:55.7]} 58.
Kd5 {[%clk 0:00:33.8]} 58... Rd2+ {[%clk 0:00:55.6]} 59. Ke6 {[%clk 0:00:33.9]}
59... Re2 {[%clk 0:00:54.1]} 60. Qf8 {[%clk 0:00:28.3]} 60... g2 {[%clk
0:00:50.8]} 61. Qxf5+ {[%clk 0:00:28.3]} 61... Kg3 {[%clk 0:00:50.2]} 62. Qg5+
{[%clk 0:00:28.4]} 62... Kf2 {[%clk 0:00:50.1]} 63. Qh4+ {[%clk 0:00:27.5]}
63... Kf1 {[%clk 0:00:49.3]} 64. Qf6+ {[%clk 0:00:19.2]} 64... Rf2 {[%clk
0:00:47.9]} 65. Qxe5 {[%clk 0:00:15.6]} 65... Re2 {[%clk 0:00:45.8]} 66. Qxe2+
{[%clk 0:00:11.4]} 66... Kxe2 {[%clk 0:00:45]} 67. b5 {[%clk 0:00:11.9]} 67...
g1=Q {[%clk 0:00:43.6]} 68. Kd6 {[%clk 0:00:12]} 68... Qb6+ {[%clk 0:00:43.5]}
0-1

[Event "*** Titled Tuesday Blitz"]
[Site "Chess.com"]
[Date "2020.04.28"]
[Round "1"]
[White "DanielTitichoca"]
[Black "BaMBoMaTTo"]
[Result "0-1"]
[WhiteElo "2304"]
[BlackElo "2629"]
[TimeControl "180+1"]
[EndTime "10:08:05 PDT"]
[Termination "BaMBoMaTTo won by checkmate"]

1. e4 {[%clk 0:02:58.6]} 1... c5 {[%clk 0:02:54.6]} 2. Nf3 {[%clk 0:02:58]} 2...
d6 {[%clk 0:02:55]} 3. d4 {[%clk 0:02:58.8]} 3... cxd4 {[%clk 0:02:55.7]} 4.
Nxd4 {[%clk 0:02:59.5]} 4... Nf6 {[%clk 0:02:56.2]} 5. Nc3 {[%clk 0:02:59.9]}
5... a6 {[%clk 0:02:56.8]} 6. Bg5 {[%clk 0:02:59.4]} 6... e6 {[%clk 0:02:57]} 7.
f4 {[%clk 0:02:58.8]} 7... h6 {[%clk 0:02:57.3]} 8. Bh4 {[%clk 0:02:57.7]} 8...
Qb6 {[%clk 0:02:57.3]} 9. Nb3 {[%clk 0:02:55.1]} 9... Be7 {[%clk 0:02:52.3]} 10.
Qe2 {[%clk 0:02:44.5]} 10... Nbd7 {[%clk 0:02:21.8]} 11. O-O-O {[%clk
0:02:40.7]} 11... Qc7 {[%clk 0:02:20.1]} 12. g3 {[%clk 0:02:29.1]} 12... b5
{[%clk 0:02:17.4]} 13. Bg2 {[%clk 0:02:28.4]} 13... Bb7 {[%clk 0:02:17]} 14. e5
{[%clk 0:02:26.1]} 14... dxe5 {[%clk 0:02:05.1]} 15. Bxb7 {[%clk 0:02:14.7]}
15... Qxb7 {[%clk 0:02:06]} 16. fxe5 {[%clk 0:02:15]} 16... g5 {[%clk 0:02:05]}
17. exf6 {[%clk 0:02:13.7]} 17... Nxf6 {[%clk 0:02:01.4]} 18. Rhf1 {[%clk
0:01:59]} 18... Rc8 {[%clk 0:01:56.1]} 19. Kb1 {[%clk 0:01:41]} 19... b4 {[%clk
0:01:51.9]} 20. Na4 {[%clk 0:01:38.3]} 20... Qb5 {[%clk 0:01:52.1]} 21. Qxb5+
{[%clk 0:01:33]} 21... axb5 {[%clk 0:01:53]} 22. Nb6 {[%clk 0:01:33.2]} 22...
Rc6 {[%clk 0:01:52]} 23. Na8 {[%clk 0:01:09.5]} 23... gxh4 {[%clk 0:01:51.6]}
24. Nd4 {[%clk 0:00:43.8]} 24... Rc5 {[%clk 0:01:35.2]} 25. Nxb5 {[%clk
0:00:38.1]} 25... O-O {[%clk 0:01:35.2]} 26. Nac7 {[%clk 0:00:33.7]} 26... Rb8
{[%clk 0:01:35.3]} 27. gxh4 {[%clk 0:00:21.7]} 27... Rbxb5 {[%clk 0:01:35.5]}
28. Nxb5 {[%clk 0:00:18.4]} 28... Rxb5 {[%clk 0:01:36.4]} 29. Rd4 {[%clk
0:00:16]} 29... Nd5 {[%clk 0:01:24.1]} 30. Rg1+ {[%clk 0:00:16]} 30... Kf8
{[%clk 0:01:24]} 31. Rdg4 {[%clk 0:00:16.5]} 31... Bf6 {[%clk 0:01:23.5]} 32.
Rg8+ {[%clk 0:00:16.4]} 32... Ke7 {[%clk 0:01:23.8]} 33. Rc8 {[%clk 0:00:15.2]}
33... Bxh4 {[%clk 0:01:21.6]} 34. Rgg8 {[%clk 0:00:15.1]} 34... Rb7 {[%clk
0:00:58.8]} 35. Rh8 {[%clk 0:00:13.6]} 35... Bg5 {[%clk 0:00:58.7]} 36. h4
{[%clk 0:00:12.9]} 36... Be3 {[%clk 0:00:53.1]} 37. h5 {[%clk 0:00:12.8]} 37...
Bg5 {[%clk 0:00:46.9]} 38. Rhf8 {[%clk 0:00:12.2]} 38... Nf4 {[%clk 0:00:45.4]}
39. Rce8+ {[%clk 0:00:12.1]} 39... Kf6 {[%clk 0:00:45.7]} 40. Rc8 {[%clk
0:00:08.2]} 40... Nxh5 {[%clk 0:00:44.7]} 41. a4 {[%clk 0:00:08]} 41... bxa3
{[%clk 0:00:44.5]} 42. b3 {[%clk 0:00:08.7]} 42... Nf4 {[%clk 0:00:26.6]} 43.
Ka2 {[%clk 0:00:09]} 43... Ng6 {[%clk 0:00:23.6]} 44. Rfd8 {[%clk 0:00:07.3]}
44... Bc1 {[%clk 0:00:22.2]} 45. c4 {[%clk 0:00:06.8]} 45... Ne7 {[%clk
0:00:18.6]} 46. Ra8 {[%clk 0:00:05.4]} 46... Nc6 {[%clk 0:00:18.7]} 47. Rdc8
{[%clk 0:00:04.7]} 47... Nb4+ {[%clk 0:00:19.1]} 48. Ka1 {[%clk 0:00:03.9]}
48... Bb2+ {[%clk 0:00:19.7]} 49. Kb1 {[%clk 0:00:04.2]} 49... Rd7 {[%clk
0:00:20.3]} 50. c5 {[%clk 0:00:01.8]} 50... Rd1# {[%clk 0:00:19.7]} 0-1

[Event "*** Titled Tuesday Blitz"]
[Site "Chess.com"]
[Date "2020.04.28"]
[Round "1"]
[White "pedromartinez91"]
[Black "Spartakus1975"]
[Result "1/2-1/2"]
[WhiteElo "2398"]
[BlackElo "2731"]
[TimeControl "180+1"]
[EndTime "10:08:06 PDT"]
[Termination "Game drawn by repetition"]

1. e4 {[%clk 0:03:00.9]} 1... e6 {[%clk 0:02:59.2]} 2. d4 {[%clk 0:02:54.7]}
2... d5 {[%clk 0:02:57]} 3. Nc3 {[%clk 0:02:54.4]} 3... Nf6 {[%clk 0:02:56]} 4.
Bg5 {[%clk 0:02:52.1]} 4... Bb4 {[%clk 0:02:54.4]} 5. e5 {[%clk 0:02:42.5]} 5...
h6 {[%clk 0:02:53.5]} 6. Bd2 {[%clk 0:02:42.1]} 6... Bxc3 {[%clk 0:02:52.7]} 7.
Bxc3 {[%clk 0:02:42.5]} 7... Ne4 {[%clk 0:02:51.7]} 8. Bb4 {[%clk 0:02:42]} 8...
c5 {[%clk 0:02:48.7]} 9. Bxc5 {[%clk 0:02:34.5]} 9... Nxc5 {[%clk 0:02:44.4]}
10. dxc5 {[%clk 0:02:35]} 10... Qa5+ {[%clk 0:02:44.3]} 11. c3 {[%clk
0:02:34.6]} 11... Qxc5 {[%clk 0:02:43.7]} 12. Qg4 {[%clk 0:02:26.3]} 12... O-O
{[%clk 0:02:40.1]} 13. Nf3 {[%clk 0:02:25.4]} 13... Nc6 {[%clk 0:02:37]} 14. Be2
{[%clk 0:01:48.7]} 14... f6 {[%clk 0:02:25.7]} 15. exf6 {[%clk 0:01:39.7]} 15...
Rxf6 {[%clk 0:02:25.6]} 16. O-O {[%clk 0:01:39.3]} 16... e5 {[%clk 0:02:25.1]}
17. Qg3 {[%clk 0:01:34.1]} 17... e4 {[%clk 0:02:22]} 18. Ne5 {[%clk 0:01:24.3]}
18... Be6 {[%clk 0:02:11.6]} 19. Kh1 {[%clk 0:01:10.1]} 19... Raf8 {[%clk
0:02:08.1]} 20. f4 {[%clk 0:00:54.8]} 20... Nxe5 {[%clk 0:02:05]} 21. fxe5
{[%clk 0:00:55.7]} 21... Rxf1+ {[%clk 0:02:04.3]} 22. Rxf1 {[%clk 0:00:55.5]}
22... Rxf1+ {[%clk 0:02:03.9]} 23. Bxf1 {[%clk 0:00:56.4]} 23... d4 {[%clk
0:01:53.4]} 24. cxd4 {[%clk 0:00:43.6]} 24... Qxd4 {[%clk 0:01:25.4]} 25. b3
{[%clk 0:00:16.3]} 25... Qd1 {[%clk 0:01:08.6]} 26. Kg1 {[%clk 0:00:16.1]} 26...
Qd4+ {[%clk 0:01:05.1]} 27. Qf2 {[%clk 0:00:14.2]} 27... e3 {[%clk 0:01:04]} 28.
Qe2 {[%clk 0:00:12.7]} 28... Qxe5 {[%clk 0:00:59]} 29. Qb5 {[%clk 0:00:11]}
29... Qxb5 {[%clk 0:00:16.8]} 30. Bxb5 {[%clk 0:00:11.9]} 30... Kf7 {[%clk
0:00:15.7]} 31. Kf1 {[%clk 0:00:12]} 31... Bd5 {[%clk 0:00:14.6]} 32. g3 {[%clk
0:00:09.4]} 32... Bf3 {[%clk 0:00:14.6]} 33. Be2 {[%clk 0:00:09.4]} 33... Be4
{[%clk 0:00:14.4]} 34. Bc4+ {[%clk 0:00:09.3]} 34... Kf6 {[%clk 0:00:14.6]} 35.
Ke2 {[%clk 0:00:09.9]} 35... Bb1 {[%clk 0:00:14.3]} 36. a4 {[%clk 0:00:08.8]}
36... Ke5 {[%clk 0:00:14.4]} 37. Kxe3 {[%clk 0:00:09.1]} 37... a5 {[%clk
0:00:13.9]} 38. h4 {[%clk 0:00:08.7]} 38... b6 {[%clk 0:00:09.9]} 39. Bg8 {[%clk
0:00:08.9]} 39... Bc2 {[%clk 0:00:06.9]} 40. Bc4 {[%clk 0:00:08.7]} 40... Kf5
{[%clk 0:00:06.6]} 41. Kf3 {[%clk 0:00:08.8]} 41... Be4+ {[%clk 0:00:06.4]} 42.
Kf2 {[%clk 0:00:07.6]} 42... g5 {[%clk 0:00:02.9]} 43. hxg5 {[%clk 0:00:06.8]}
43... hxg5 {[%clk 0:00:03.5]} 44. Ke3 {[%clk 0:00:07.5]} 44... Ke5 {[%clk
0:00:04]} 45. Bg8 {[%clk 0:00:06.7]} 45... Bd5 {[%clk 0:00:04.5]} 46. Bxd5
{[%clk 0:00:06.9]} 46... Kxd5 {[%clk 0:00:04.8]} 47. Kd3 {[%clk 0:00:07]} 47...
Kc5 {[%clk 0:00:04.5]} 48. Kc3 {[%clk 0:00:06]} 48... g4 {[%clk 0:00:05]} 49.
Kd3 {[%clk 0:00:06.2]} 49... Kb4 {[%clk 0:00:05.3]} 50. Kc2 {[%clk 0:00:06.8]}
50... Ka3 {[%clk 0:00:05.6]} 51. Kc3 {[%clk 0:00:07.1]} 51... Ka2 {[%clk
0:00:06]} 52. Kc2 {[%clk 0:00:07.6]} 52... Ka3 {[%clk 0:00:05.9]} 53. Kc3 {[%clk
0:00:08.1]} 53... Ka2 {[%clk 0:00:06.3]} 54. Kc2 {[%clk 0:00:08.7]} 54... Ka3
{[%clk 0:00:06.2]} 1/2-1/2

[Event "*** Titled Tuesday Blitz"]
[Site "Chess.com"]
[Date "2020.04.28"]
[Round "1"]
[White "goofypenguin96"]
[Black "Tashik"]
[Result "0-1"]
[WhiteElo "2156"]
[BlackElo "2524"]
[TimeControl "180+1"]
[EndTime "10:08:06 PDT"]
[Termination "Tashik won by resignation"]

1. e4 {[%clk 0:02:57.3]} 1... e5 {[%clk 0:02:58.1]} 2. Nf3 {[%clk 0:02:57.4]}
2... Nc6 {[%clk 0:02:58.6]} 3. Bc4 {[%clk 0:02:57.8]} 3... Bc5 {[%clk
0:02:58.1]} 4. O-O {[%clk 0:02:57.3]} 4... Nf6 {[%clk 0:02:58.6]} 5. d4 {[%clk
0:02:57.4]} 5... Bxd4 {[%clk 0:02:56.5]} 6. Nxd4 {[%clk 0:02:55.3]} 6... Nxd4
{[%clk 0:02:57.1]} 7. Bg5 {[%clk 0:02:56.2]} 7... Qe7 {[%clk 0:02:44.8]} 8. Nc3
{[%clk 0:02:54.9]} 8... c6 {[%clk 0:02:43.9]} 9. Ne2 {[%clk 0:02:48.2]} 9... Ne6
{[%clk 0:02:41.7]} 10. Bxf6 {[%clk 0:02:45.3]} 10... Qxf6 {[%clk 0:02:31.8]} 11.
Qd3 {[%clk 0:02:40.2]} 11... O-O {[%clk 0:02:26.9]} 12. Rad1 {[%clk 0:02:39.6]}
12... b5 {[%clk 0:02:04.4]} 13. Bb3 {[%clk 0:02:39]} 13... Nc5 {[%clk
0:02:03.3]} 14. Qe3 {[%clk 0:02:34.8]} 14... d6 {[%clk 0:01:55.5]} 15. f4 {[%clk
0:02:27.4]} 15... Bg4 {[%clk 0:01:53.3]} 16. f5 {[%clk 0:01:48.9]} 16... a5
{[%clk 0:01:50.1]} 17. c3 {[%clk 0:01:44.5]} 17... Nxb3 {[%clk 0:01:42]} 18.
axb3 {[%clk 0:01:45.4]} 18... a4 {[%clk 0:01:32.7]} 19. bxa4 {[%clk 0:01:35]}
19... Rxa4 {[%clk 0:01:33.6]} 20. Rd2 {[%clk 0:01:35.4]} 20... Bxe2 {[%clk
0:01:28.9]} 21. Qxe2 {[%clk 0:01:33.9]} 21... b4 {[%clk 0:01:11.2]} 22. Rfd1
{[%clk 0:01:31.6]} 22... bxc3 {[%clk 0:01:06.6]} 23. bxc3 {[%clk 0:01:30.1]}
23... Rd8 {[%clk 0:00:55.3]} 24. Qe3 {[%clk 0:01:07.8]} 24... h6 {[%clk
0:00:52]} 25. h3 {[%clk 0:01:06.9]} 25... Qh4 {[%clk 0:00:28]} 26. Rxd6 {[%clk
0:01:02.4]} 26... Rxd6 {[%clk 0:00:28]} 27. Rxd6 {[%clk 0:01:02.1]} 27... Rxe4
{[%clk 0:00:28.5]} 28. Qf3 {[%clk 0:00:43.7]} 28... Re1+ {[%clk 0:00:26.1]} 29.
Kh2 {[%clk 0:00:43.5]} 29... e4 {[%clk 0:00:26.6]} 30. Qg3 {[%clk 0:00:39.4]}
30... Qxg3+ {[%clk 0:00:25.4]} 31. Kxg3 {[%clk 0:00:40.3]} 31... Re3+ {[%clk
0:00:23.1]} 32. Kf4 {[%clk 0:00:40.3]} 32... Rxc3 {[%clk 0:00:23.5]} 33. Kxe4
{[%clk 0:00:37.7]} 33... f6 {[%clk 0:00:18.7]} 34. Rd8+ {[%clk 0:00:34.2]} 34...
Kh7 {[%clk 0:00:17.8]} 35. Kf4 {[%clk 0:00:29.4]} 35... h5 {[%clk 0:00:18.1]}
36. Rc8 {[%clk 0:00:22.5]} 36... Rc4+ {[%clk 0:00:17.8]} 37. Kf3 {[%clk
0:00:21.9]} 37... Kh6 {[%clk 0:00:16.7]} 38. Rc7 {[%clk 0:00:15.6]} 38... h4
{[%clk 0:00:15.7]} 39. Rd7 {[%clk 0:00:09.8]} 39... c5 {[%clk 0:00:14.9]} 40.
Rc7 {[%clk 0:00:09.7]} 40... Rc2 {[%clk 0:00:11]} 41. Kg4 {[%clk 0:00:09.2]}
41... Rxg2+ {[%clk 0:00:10.8]} 42. Kxh4 {[%clk 0:00:10.1]} 42... Rc2 {[%clk
0:00:10.1]} 43. Rc8 {[%clk 0:00:09.7]} 43... Kh7 {[%clk 0:00:09.7]} 44. Kh5
{[%clk 0:00:09.8]} 44... c4 {[%clk 0:00:09]} 45. h4 {[%clk 0:00:10.1]} 45... c3
{[%clk 0:00:09.1]} 46. Rc7 {[%clk 0:00:09]} 46... Rc1 {[%clk 0:00:09.3]} 47.
Rxg7+ {[%clk 0:00:08.9]} 47... Kxg7 {[%clk 0:00:05.8]} 0-1

[Event "*** Titled Tuesday Blitz"]
[Site "Chess.com"]
[Date "2020.04.28"]
[Round "1"]
[White "Supernotar"]
[Black "The_Machine04"]
[Result "1-0"]
[WhiteElo "2611"]
[BlackElo "2289"]
[TimeControl "180+1"]
[EndTime "10:08:07 PDT"]
[Termination "Supernotar won by resignation"]

1. d4 {[%clk 0:02:59.8]} 1... d6 {[%clk 0:02:58.7]} 2. c4 {[%clk 0:02:59.1]}
2... e5 {[%clk 0:02:55.9]} 3. Nc3 {[%clk 0:02:51.9]} 3... exd4 {[%clk
0:02:54.3]} 4. Qxd4 {[%clk 0:02:51.9]} 4... Nc6 {[%clk 0:02:54.9]} 5. Qd2 {[%clk
0:02:51.9]} 5... g6 {[%clk 0:02:54.8]} 6. b3 {[%clk 0:02:51.6]} 6... Bg7 {[%clk
0:02:55]} 7. Bb2 {[%clk 0:02:51.4]} 7... Nf6 {[%clk 0:02:55.4]} 8. g3 {[%clk
0:02:51.4]} 8... O-O {[%clk 0:02:54.8]} 9. Bg2 {[%clk 0:02:51.5]} 9... a5 {[%clk
0:02:51.3]} 10. Nh3 {[%clk 0:02:49.9]} 10... Bxh3 {[%clk 0:02:34.5]} 11. Bxh3
{[%clk 0:02:49.2]} 11... Re8 {[%clk 0:02:35.4]} 12. O-O {[%clk 0:02:45]} 12...
Ne4 {[%clk 0:02:31.4]} 13. Nxe4 {[%clk 0:02:39.9]} 13... Rxe4 {[%clk 0:02:32.3]}
14. Bg2 {[%clk 0:02:36.2]} 14... Bxb2 {[%clk 0:02:11.5]} 15. Qxb2 {[%clk
0:02:28.6]} 15... Re5 {[%clk 0:02:10.7]} 16. Rad1 {[%clk 0:02:22.5]} 16... Qe7
{[%clk 0:02:09.6]} 17. e3 {[%clk 0:02:22.2]} 17... Re8 {[%clk 0:01:58.4]} 18. h4
{[%clk 0:02:13.5]} 18... h6 {[%clk 0:01:54.1]} 19. Rd5 {[%clk 0:02:08.8]} 19...
Kh7 {[%clk 0:01:43.7]} 20. Rfd1 {[%clk 0:02:06.1]} 20... Qf6 {[%clk 0:01:21.9]}
21. Qd2 {[%clk 0:01:46]} 21... Rxd5 {[%clk 0:01:15.6]} 22. cxd5 {[%clk
0:01:29.1]} 22... Ne5 {[%clk 0:01:11.9]} 23. Qxa5 {[%clk 0:01:24.9]} 23... Nf3+
{[%clk 0:01:11.9]} 24. Bxf3 {[%clk 0:01:04.9]} 24... Qxf3 {[%clk 0:01:12.8]} 25.
Re1 {[%clk 0:00:55.3]} 25... b6 {[%clk 0:01:09.2]} 26. Qc3 {[%clk 0:00:47.9]}
26... Ra8 {[%clk 0:00:58.6]} 27. a4 {[%clk 0:00:34.7]} 27... Qxd5 {[%clk
0:00:57]} 28. Qxc7 {[%clk 0:00:31.5]} 28... Qxb3 {[%clk 0:00:56.8]} 29. Qxd6
{[%clk 0:00:27.5]} 29... Rxa4 {[%clk 0:00:56.3]} 30. Rc1 {[%clk 0:00:24]} 30...
Qe6 {[%clk 0:00:53.2]} 31. Qxe6 {[%clk 0:00:21.6]} 31... fxe6 {[%clk 0:00:54.1]}
32. Rc7+ {[%clk 0:00:21.2]} 32... Kg8 {[%clk 0:00:53.1]} 33. Rc6 {[%clk
0:00:21.4]} 33... Kf7 {[%clk 0:00:48.5]} 34. Rxb6 {[%clk 0:00:21]} 34... Kf6
{[%clk 0:00:48]} 35. Kg2 {[%clk 0:00:20]} 35... h5 {[%clk 0:00:48.4]} 36. Kf3
{[%clk 0:00:19.9]} 36... Kf5 {[%clk 0:00:47.4]} 37. Rd6 {[%clk 0:00:19.3]} 37...
Ke5 {[%clk 0:00:46.7]} 38. Rd8 {[%clk 0:00:18.9]} 38... Kf5 {[%clk 0:00:47]} 39.
Rf8+ {[%clk 0:00:18.6]} 39... Ke5 {[%clk 0:00:47.3]} 40. Rf4 {[%clk 0:00:18.5]}
40... Ra3 {[%clk 0:00:45.9]} 41. Rd4 {[%clk 0:00:16.9]} 41... Kf5 {[%clk
0:00:44.4]} 42. Rf4+ {[%clk 0:00:16.6]} 42... Ke5 {[%clk 0:00:44.6]} 43. g4
{[%clk 0:00:16.6]} 43... hxg4+ {[%clk 0:00:39.6]} 44. Rxg4 {[%clk 0:00:13.3]}
44... Kf6 {[%clk 0:00:37.2]} 45. Rf4+ {[%clk 0:00:12.5]} 45... Kg7 {[%clk
0:00:32.7]} 46. Rd4 {[%clk 0:00:08.9]} 46... Kf6 {[%clk 0:00:31.8]} 47. Kg4
{[%clk 0:00:04.6]} 47... Ra5 {[%clk 0:00:30.2]} 48. Rf4+ {[%clk 0:00:04.1]}
48... Kg7 {[%clk 0:00:30]} 49. Kf3 {[%clk 0:00:03.9]} 49... Ra3 {[%clk
0:00:27.8]} 50. Rg4 {[%clk 0:00:04]} 50... Kf6 {[%clk 0:00:27.2]} 51. Rb4 {[%clk
0:00:03.7]} 51... Ra2 {[%clk 0:00:25]} 52. Rb5 {[%clk 0:00:04]} 52... Ra4 {[%clk
0:00:24]} 53. h5 {[%clk 0:00:03.9]} 53... gxh5 {[%clk 0:00:24.1]} 54. Rxh5
{[%clk 0:00:03.9]} 54... Ke7 {[%clk 0:00:23.7]} 55. Rg5 {[%clk 0:00:03.9]} 55...
Kf6 {[%clk 0:00:24]} 56. Rg4 {[%clk 0:00:04.3]} 56... Kf5 {[%clk 0:00:23.7]} 57.
Rxa4 {[%clk 0:00:03.8]} 1-0